bitfinex/quotes_BTCUSD_20240826
["timestamp","ask_amount","ask_price","bid_price","bid_amount"]
[1724676099982,1.21406222,63734.0,63733.0,0.000825]
[1724676100286,1.26075432,63734.0,63733.0,0.000825]
[1724676100490,1.26075432,63734.0,63733.0,0.001825]
[1724676100895,1.21406222,63734.0,63733.0,0.001825]
[1724676101315,1.26075138,63734.0,63733.0,0.001825]
[1724676101791,1.26075138,63734.0,63733.0,0.000825]
[1724676102001,1.26075138,63734.0,63733.0,0.001825]
[1724676102210,1.98264423,63734.0,63733.0,0.000825]
[1724676102857,2.17534423,63734.0,63733.0,0.000825]
[1724676103797,2.26870235,63734.0,63733.0,0.000825]
[1724676103995,2.17534423,63734.0,63733.0,0.000825]
[1724676104200,2.17334423,63734.0,63733.0,0.000825]
[1724676104403,2.28997084,63734.0,63733.0,0.000825]
[1724676104638,2.17934423,63734.0,63733.0,0.000825]
[1724676104808,2.28997084,63734.0,63733.0,0.000825]
[1724676105029,2.29087835,63734.0,63733.0,0.000825]
[1724676105231,2.29887835,63734.0,63733.0,0.000825]
[1724676105479,2.18225174,63734.0,63733.0,0.000825]
[1724676105694,2.29887835,63734.0,63733.0,0.000825]
[1724676105897,2.18225174,63734.0,63733.0,0.000825]
[1724676106330,2.29890232,63734.0,63733.0,0.000825]
[1724676107607,2.18225174,63734.0,63733.0,0.000825]
[1724676107777,2.29890232,63734.0,63733.0,0.000825]
[1724676108549,2.18225174,63734.0,63733.0,0.000825]
[1724676110605,1.098555,63720.0,63719.0,0.001]
[1724676110805,0.156948,63715.0,63714.0,0.504]
[1724676111048,0.470845,63715.0,63714.0,0.503]
[1724676111262,0.784742,63715.0,63714.0,0.504]
[1724676113994,0.79861914,63715.0,63714.0,0.504]
[1724676114986,1.21251614,63715.0,63714.0,0.504]
[1724676115183,1.21351614,63715.0,63714.0,0.504]
[1724676116033,1.21351614,63715.0,63714.0,0.324]
[1724676116266,0.78478,63712.0,63711.0,0.00167037]
[1724676116515,1.35487001,63712.0,63711.0,0.00167037]
[1724676117474,1.35487001,63712.0,63711.0,0.00067037]
[1724676117890,1.68197001,63712.0,63711.0,0.00067037]
[1724676118097,1.35587001,63712.0,63711.0,0.00067037]
[1724676118330,0.88578,63712.0,63711.0,0.00167037]
[1724676118944,0.88478,63712.0,63711.0,0.00167037]
[1724676119145,0.575868,63712.0,63711.0,0.00167037]
[1724676119562,0.88478,63712.0,63711.0,0.00167037]
[1724676119994,0.88478,63712.0,63711.0,0.00067037]
[1724676120203,0.570868,63712.0,63711.0,0.00167037]
[1724676120415,0.570868,63712.0,63711.0,0.00067037]
[1724676120621,0.88478,63712.0,63711.0,0.00167037]
[1724676121086,0.88578,63712.0,63711.0,0.00167037]
[1724676121292,0.88478,63712.0,63711.0,0.00167037]
[1724676121512,0.88478,63712.0,63711.0,0.00067037]
[1724676121718,1.35487001,63712.0,63711.0,0.00167037]
[1724676122130,1.35468116,63712.0,63711.0,0.00167037]
[1724676122961,1.04376916,63712.0,63711.0,0.00167037]
[1724676123376,1.35768116,63712.0,63711.0,0.00167037]
[1724676123789,1.35768116,63712.0,63711.0,0.00067037]
[1724676123994,1.35768116,63712.0,63711.0,0.00167037]
[1724676125451,1.35468116,63712.0,63711.0,0.00167037]
[1724676125783,1.04776916,63712.0,63711.0,0.00167037]
[1724676126221,1.36168116,63712.0,63711.0,0.00167037]
[1724676128573,1.36168116,63712.0,63711.0,0.00067037]
[1724676129365,1.36168116,63712.0,63711.0,0.00167037]
[1724676129573,1.36168116,63712.0,63711.0,0.00249537]
[1724676129817,1.99939316,63712.0,63711.0,0.00149537]
[1724676130047,2.5498116,63712.0,63711.0,0.00149537]
[1724676130252,2.50330516,63712.0,63711.0,0.00149537]
[1724676130460,2.18939316,63712.0,63711.0,0.00149537]
[1724676130660,2.50330516,63712.0,63711.0,0.00149537]
[1724676130887,2.28239277,63712.0,63711.0,0.00149537]
[1724676131088,2.20339316,63712.0,63711.0,0.00249537]
[1724676131809,2.29637115,63712.0,63711.0,0.00249537]
[1724676132004,2.51730516,63712.0,63711.0,0.00249537]
[1724676132206,2.51730516,63712.0,63709.0,0.00825]
[1724676132207,1.605627,63710.0,63709.0,0.00825]
[1724676132450,2.24544458,63710.0,63709.0,0.00825]
[1724676133081,2.17572701,63710.0,63709.0,0.00825]
[1724676133359,2.6710016,63710.0,63709.0,0.00825]
[1724676133594,2.5826041,63710.0,63709.0,0.00825]
[1724676133838,2.5966041,63710.0,63709.0,0.00825]
[1724676134351,2.5826041,63710.0,63709.0,0.00825]
[1724676134610,2.2966821,63710.0,63709.0,0.00825]
[1724676134851,2.18972701,63710.0,63709.0,0.00825]
[1724676135096,2.20372701,63710.0,63709.0,0.00825]
[1724676135404,2.25942672,63710.0,63709.0,0.00825]
[1724676135573,2.28402922,63710.0,63709.0,0.00825]
[1724676135773,2.20032951,63710.0,63709.0,0.00825]
[1724676135970,2.27002922,63710.0,63709.0,0.00825]
[1724676136200,2.21432951,63710.0,63709.0,0.00825]
[1724676137472,2.29802922,63710.0,63709.0,0.00825]
[1724676137680,2.22832951,63710.0,63709.0,0.00825]
[1724676138520,2.27480564,63710.0,63709.0,0.00825]
[1724676139337,2.25020314,63710.0,63709.0,0.00825]
[1724676139852,2.20372701,63710.0,63709.0,0.00825]
[1724676140295,2.25020177,63710.0,63709.0,0.00825]
[1724676140675,1.69682701,63710.0,63709.0,0.00825]
[1724676141684,1.74330682,63710.0,63709.0,0.00825]
[1724676141896,2.05110682,63710.0,63709.0,0.00825]
[1724676142101,2.18832701,63710.0,63709.0,0.00825]
[1724676142296,2.25804673,63710.0,63709.0,0.00825]
[1724676142567,2.27204673,63710.0,63709.0,0.00825]
[1724676142769,2.27204673,63710.0,63707.0,0.1]
[1724676142770,1.589562,63708.0,63707.0,0.1]
[1724676143005,2.15967201,63708.0,63707.0,0.1]
[1724676143274,1.098986,63695.0,63690.0,0.3054]
[1724676143512,1.35516401,63695.0,63690.0,0.3054]
[1724676143718,1.35516401,63695.0,63688.0,0.20295]
[1724676143719,1.97016001,63695.0,63688.0,0.00825]
[1724676144854,1.97516001,63695.0,63688.0,0.00825]
[1724676146246,1.98316001,63695.0,63688.0,0.00825]
[1724676147401,1.99719896,63695.0,63688.0,0.00825]
[1724676148937,2.18679896,63695.0,63688.0,0.00825]
[1724676150768,2.23327891,63695.0,63688.0,0.00825]
[1724676151149,2.54727491,63695.0,63688.0,0.00825]
[1724676151513,2.23327891,63695.0,63688.0,0.00825]
[1724676151667,2.22527891,63695.0,63688.0,0.00825]
[1724676152070,2.19279896,63695.0,63688.0,0.00825]
[1724676152494,2.57651489,63695.0,63688.0,0.00825]
[1724676152696,2.59451489,63695.0,63688.0,0.00825]
[1724676153077,2.69392664,63695.0,63688.0,0.00825]
[1724676153281,3.00792264,63695.0,63688.0,0.00825]
[1724676153478,3.00792264,63695.0,63684.0,0.00825]
[1724676153479,0.157022,63685.0,63684.0,0.00825]
[1724676153683,1.43889001,63685.0,63684.0,0.00670939]
[1724676153895,1.92260796,63685.0,63684.0,0.00670939]
[1724676154120,2.48102501,63685.0,63684.0,0.00670939]
[1724676154334,1.099262,63679.0,63678.0,0.00563744]
[1724676154538,1.35544001,63679.0,63678.0,0.00063744]
[1724676155127,1.66951501,63679.0,63678.0,0.00063744]
[1724676155920,1.68351501,63679.0,63678.0,0.00063744]
[1724676156341,1.66951501,63679.0,63678.0,0.00063744]
[1724676156743,1.68351501,63679.0,63678.0,0.00063744]
[1724676157313,1.69705826,63679.0,63678.0,0.00063744]
[1724676157527,2.19365826,63679.0,63678.0,0.00063744]
[1724676157707,2.34978994,63679.0,63678.0,0.00063744]
[1724676158621,1.70905826,63679.0,63678.0,0.00063744]
[1724676158829,1.69505826,63679.0,63678.0,0.00063744]
[1724676159182,1.69705826,63679.0,63678.0,0.00063744]
[1724676159980,2.01885826,63679.0,63678.0,0.00063744]
[1724676160187,2.03285826,63679.0,63678.0,0.00063744]
[1724676160361,2.15990222,63679.0,63678.0,0.00063744]
[1724676160562,2.15990222,63679.0,63678.0,1e-08]
[1724676160945,2.01885826,63679.0,63678.0,1e-08]
[1724676161143,2.20955826,63679.0,63678.0,1e-08]
[1724676161549,1.69705826,63679.0,63678.0,1e-08]
[1724676161777,1.36898326,63679.0,63678.0,1e-08]
[1724676162157,1.38298326,63679.0,63678.0,1e-08]
[1724676162842,1.36898326,63679.0,63678.0,1e-08]
[1724676163048,1.39698326,63679.0,63678.0,1e-08]
[1724676163265,1.39698326,63679.0,63678.0,0.31540001]
[1724676163467,1.38298326,63679.0,63678.0,0.31540001]
[1724676163866,1.39498326,63679.0,63678.0,0.31540001]
[1724676164125,1.39498326,63679.0,63678.0,1e-08]
[1724676164279,1.38098326,63679.0,63678.0,1e-08]
[1724676164680,1.39498326,63679.0,63678.0,1e-08]
[1724676165772,1.39479434,63679.0,63678.0,1e-08]
[1724676168133,1.70886934,63679.0,63678.0,1e-08]
[1724676168344,1.39479434,63679.0,63678.0,1e-08]
[1724676168539,1.70886934,63679.0,63678.0,1e-08]
[1724676168757,1.39479434,63679.0,63678.0,1e-08]
[1724676169159,1.70886934,63679.0,63678.0,1e-08]
[1724676169565,1.39479434,63679.0,63678.0,1e-08]
[1724676174391,1.70886934,63679.0,63678.0,1e-08]
[1724676174563,2.03596934,63679.0,63678.0,1e-08]
[1724676175115,1.72189434,63679.0,63678.0,1e-08]
[1724676175296,1.39479434,63679.0,63678.0,1e-08]
[1724676175667,1.39479434,63679.0,63678.0,0.30770001]
[1724676175668,0.92454133,63679.0,63678.0,0.30770001]
[1724676175875,0.92454133,63679.0,63678.0,0.49750001]
[1724676176517,1.23861633,63679.0,63678.0,0.49750001]
[1724676176652,0.92454133,63679.0,63678.0,0.49750001]
[1724676177004,1.23861633,63679.0,63678.0,0.49750001]
[1724676177885,0.92454133,63679.0,63678.0,0.49750001]
[1724676178203,0.49692308,63679.0,63678.0,0.49750001]
[1724676178416,0.026,63679.0,63678.0,0.65454001]
[1724676178614,0.026,63679.0,63678.0,0.67667802]
[1724676179299,0.026,63679.0,63678.0,1.46187802]
[1724676179436,0.01396664,63699.0,63684.0,0.157025]
[1724676179641,0.46876099,63693.0,63689.0,0.1353]
[1724676179849,0.313965,63702.0,63692.0,0.1353]
[1724676179850,0.156992,63698.0,63692.0,0.1353]
[1724676180071,0.156993,63697.0,63693.0,0.3173]
[1724676180279,0.313977,63699.0,63694.0,0.4526]
[1724676180477,0.313962,63702.0,63694.0,0.4526]
[1724676180831,0.15448,63695.0,63694.0,0.4526]
[1724676181046,0.14948,63695.0,63694.0,0.4756]
[1724676181451,0.15848,63695.0,63694.0,0.4756]
[1724676181692,0.15548,63695.0,63694.0,0.4756]
[1724676181905,0.14948,63695.0,63694.0,0.4756]
[1724676182136,0.14948,63695.0,63694.0,0.63177801]
[1724676183162,0.14948,63695.0,63694.0,0.79077801]
[1724676183372,0.15048,63695.0,63694.0,1.10477901]
[1724676183810,0.15148,63695.0,63694.0,0.79477801]
[1724676184017,0.15048,63695.0,63694.0,0.79077801]
[1724676184218,0.15048,63695.0,63694.0,0.63377801]
[1724676184420,0.15148,63695.0,63694.0,0.63777801]
[1724676184596,0.15148,63695.0,63694.0,0.4816]
[1724676185039,0.15148,63695.0,63694.0,0.4586]
[1724676188257,0.15148,63695.0,63694.0,0.61477801]
[1724676188529,0.15148,63695.0,63694.0,0.63777801]
[1724676189928,0.15148,63695.0,63694.0,0.79477801]
[1724676190520,0.15148,63695.0,63694.0,1.10877901]
[1724676190721,0.15148,63695.0,63694.0,1.42278001]
[1724676191166,0.15148,63695.0,63694.0,1.42378001]
[1724676191946,0.15238861,63695.0,63694.0,1.42378001]
[1724676193072,0.15138861,63695.0,63694.0,1.73578101]
[1724676193278,0.15038861,63695.0,63694.0,1.73178101]
[1724676193495,0.15138861,63695.0,63694.0,1.43078001]
[1724676193698,0.15238861,63695.0,63694.0,1.43878001]
[1724676193858,0.15138861,63695.0,63694.0,1.42578001]
[1724676194053,0.15038861,63695.0,63694.0,1.41778001]
[1724676194263,0.15138861,63695.0,63694.0,1.43078001]
[1724676194459,0.15238861,63695.0,63694.0,1.60408001]
[1724676194670,0.15238861,63695.0,63694.0,1.43878001]
[1724676195381,0.00090751,63707.0,63706.0,0.470913]
[1724676195599,0.00090751,63707.0,63706.0,1.47133301]
[1724676195801,0.00090751,63707.0,63706.0,1.78627501]
[1724676196718,0.00090751,63707.0,63706.0,1.47233301]
[1724676197245,0.00190751,63707.0,63706.0,1.48033301]
[1724676197544,0.00190751,63707.0,63706.0,1.79427501]
[1724676197750,0.00090751,63707.0,63706.0,1.78627501]
[1724676198153,0.00190751,63707.0,63706.0,2.10821701]
[1724676198530,0.00190751,63707.0,63706.0,2.12221701]
[1724676198531,0.00290751,63707.0,63706.0,2.12221701]
[1724676199286,0.00190751,63707.0,63706.0,2.10821701]
[1724676199471,0.00190751,63707.0,63706.0,2.11421701]
[1724676199871,0.00290751,63707.0,63706.0,1.81027501]
[1724676201963,0.00290751,63707.0,63706.0,1.49633301]
[1724676204913,0.00290751,63707.0,63706.0,1.81027501]
[1724676206716,0.00290751,63707.0,63706.0,1.82501154]
[1724676207294,0.00290751,63707.0,63706.0,1.92501154]
[1724676208665,0.00290751,63707.0,63706.0,1.93887666]
[1724676208859,0.00290751,63707.0,63706.0,1.92501154]
[1724676210710,0.18542253,63724.0,63717.0,0.156943]
[1724676211098,0.18542253,63724.0,63718.0,0.33611901]
[1724676212119,0.18642253,63724.0,63718.0,0.17917801]
[1724676212338,0.18742253,63724.0,63718.0,0.33611901]
[1724676212517,0.18642253,63724.0,63718.0,0.33611901]
[1724676212723,0.18542253,63724.0,63718.0,0.34711901]
[1724676212928,0.18642253,63724.0,63718.0,0.35511901]
[1724676213134,0.18742253,63724.0,63718.0,0.35511901]
[1724676213273,0.18742253,63724.0,63720.0,0.001]
[1724676213472,0.002,63724.0,63721.0,0.15617801]
[1724676213695,0.002,63724.0,63722.0,0.023]
[1724676213895,0.002,63724.0,63722.0,0.17917801]
[1724676214878,0.1885,63726.0,63722.0,0.17917801]
[1724676215057,0.1885,63726.0,63722.0,0.19017801]
[1724676215058,0.001,63724.0,63722.0,0.19017801]
[1724676215269,0.002,63724.0,63722.0,0.19017801]
[1724676215680,0.001,63724.0,63722.0,0.19017801]
[1724676216090,0.001,63724.0,63722.0,0.19617801]
[1724676216342,0.3082,63723.0,63722.0,0.017]
[1724676216754,0.3082,63723.0,63722.0,0.011]
[1724676216963,0.3032,63723.0,63722.0,0.011]
[1724676217366,0.460129,63723.0,63722.0,0.011]
[1724676217587,0.966187,63723.0,63722.0,0.011]
[1724676217795,0.156932,63722.0,63714.0,0.001]
[1724676217969,0.156934,63721.0,63715.0,0.15617801]
[1724676218200,0.4964,63723.0,63716.0,0.023]
[1724676218612,0.65333,63723.0,63716.0,0.023]
[1724676218799,0.65233,63723.0,63716.0,0.023]
[1724676219054,0.65333,63723.0,63722.0,0.009]
[1724676219260,0.4964,63723.0,63722.0,0.009]
[1724676219467,0.4954,63723.0,63716.0,0.023]
[1724676219885,0.4964,63723.0,63716.0,0.032]
[1724676220115,0.001,63723.0,63720.0,0.001]
[1724676220294,0.001,63723.0,63721.0,0.15617801]
[1724676220532,0.001,63723.0,63722.0,0.023]
[1724676220739,0.001,63723.0,63722.0,0.17917801]
[1724676220941,0.002,63723.0,63722.0,0.17917801]
[1724676221151,0.00090861,63726.0,63725.0,0.001]
[1724676221372,0.00090861,63726.0,63725.0,0.93048799]
[1724676221583,0.00090861,63726.0,63725.0,1.26733599]
[1724676222204,0.00090861,63726.0,63725.0,0.95348799]
[1724676222411,0.00090861,63726.0,63725.0,0.96822159]
[1724676222631,0.00190861,63726.0,63725.0,1.17662159]
[1724676222835,0.00190861,63726.0,63725.0,1.49046959]
[1724676223043,0.18470861,63726.0,63725.0,0.17917801]
[1724676223262,0.18470861,63726.0,63720.0,0.001]
[1724676223472,0.18470861,63726.0,63721.0,0.15617801]
[1724676223687,0.18470861,63726.0,63722.0,0.023]
[1724676223905,0.18470861,63726.0,63722.0,0.17917801]
[1724676224107,0.18470861,63726.0,63725.0,0.014]
[1724676224459,0.18470861,63726.0,63722.0,0.17917801]
[1724676224986,0.18470861,63726.0,63725.0,0.014]
[1724676224987,0.18570861,63726.0,63725.0,0.014]
[1724676225341,0.18570861,63726.0,63722.0,0.17917801]
[1724676225342,0.18470861,63726.0,63722.0,0.17917801]
[1724676225572,0.18470861,63726.0,63722.0,0.18817801]
[1724676226139,0.18470861,63726.0,63722.0,0.17917801]
[1724676226403,0.18470861,63726.0,63725.0,0.009]
[1724676227092,0.34162961,63726.0,63725.0,0.009]
[1724676227295,0.34162961,63726.0,63725.0,0.022]
[1724676228301,0.34162961,63726.0,63715.0,0.001]
[1724676228577,0.18570861,63726.0,63725.0,0.012]
[1724676229284,0.34162961,63726.0,63725.0,0.012]
[1724676229485,0.34162961,63726.0,63725.0,0.021]
[1724676229486,0.65647261,63726.0,63725.0,0.021]
[1724676229703,0.18570861,63726.0,63725.0,0.021]
[1724676230249,0.18570861,63726.0,63725.0,0.009]
[1724676230451,0.65042961,63726.0,63725.0,0.009]
[1724676230655,0.96427261,63726.0,63725.0,0.009]
[1724676230882,1.27811561,63726.0,63725.0,0.009]
[1724676231081,1.59195861,63726.0,63725.0,0.009]
[1724676231238,1.59195861,63726.0,63725.0,0.021]
[1724676231652,1.59195861,63726.0,63725.0,0.009]
[1724676231855,0.470817,63719.0,63718.0,0.000825]
[1724676232059,1.280595,63719.0,63718.0,0.000825]
[1724676232466,1.380595,63719.0,63718.0,0.000825]
[1724676232867,1.066717,63719.0,63718.0,0.000825]
[1724676233068,1.070717,63719.0,63718.0,0.000825]
[1724676234150,1.384595,63719.0,63718.0,0.000825]
[1724676234353,1.070717,63719.0,63718.0,0.000825]
[1724676234964,1.07783685,63719.0,63718.0,0.000825]
[1724676235378,0.76395885,63719.0,63718.0,0.000825]
[1724676235779,1.07783685,63719.0,63718.0,0.000825]
[1724676236613,1.39171485,63719.0,63718.0,0.000825]
[1724676236818,1.07783685,63719.0,63718.0,0.000825]
[1724676237217,1.07764798,63719.0,63718.0,0.000825]
[1724676237864,1.07964798,63719.0,63718.0,0.000825]
[1724676238443,1.39352598,63719.0,63718.0,0.000825]
[1724676239526,1.86358199,63719.0,63718.0,0.000825]
[1724676239725,1.93334295,63719.0,63718.0,0.000825]
[1724676240152,1.86358199,63719.0,63718.0,0.000825]
[1724676240299,1.95659661,63719.0,63718.0,0.000825]
[1724676240507,1.86358199,63719.0,63718.0,0.000825]
[1724676241939,1.87702957,63719.0,63718.0,0.000825]
[1724676242139,2.19090757,63719.0,63718.0,0.000825]
[1724676242951,2.18690757,63719.0,63718.0,0.000825]
[1724676243454,2.19690757,63719.0,63718.0,0.001825]
[1724676243772,2.58559269,63719.0,63718.0,0.001825]
[1724676243976,1.412559,63714.0,63713.0,0.0001024]
[1724676244181,2.22271678,63714.0,63713.0,0.0001024]
[1724676244392,2.50384334,63714.0,63713.0,0.0001024]
[1724676244809,2.84234747,63714.0,63713.0,0.0001024]
[1724676245019,2.84234747,63714.0,63695.0,0.000826]
[1724676245020,1.098968,63696.0,63695.0,0.000826]
[1724676245228,1.707568,63696.0,63695.0,0.000826]
[1724676245439,1.707568,63696.0,63695.0,0.001826]
[1724676245658,1.71444897,63696.0,63695.0,0.001826]
[1724676246250,1.71444897,63696.0,63695.0,0.000826]
[1724676246471,1.71944897,63696.0,63695.0,0.000826]
[1724676246868,1.71944897,63696.0,63695.0,0.001826]
[1724676247100,1.71944897,63696.0,63695.0,0.000826]
[1724676247434,1.71944897,63696.0,63695.0,0.004826]
[1724676247634,1.87562698,63696.0,63695.0,0.004826]
[1724676247865,1.88928671,63696.0,63695.0,0.000826]
[1724676248069,1.89228671,63696.0,63695.0,0.000826]
[1724676248841,1.72244897,63696.0,63695.0,0.001826]
[1724676249296,1.715568,63696.0,63695.0,0.001826]
[1724676249495,1.087586,63696.0,63695.0,0.001826]
[1724676250900,1.087586,63696.0,63695.0,0.000826]
[1724676251049,1.087586,63696.0,63695.0,0.001826]
[1724676251452,0.6166,63696.0,63695.0,0.001826]
[1724676251664,0.773595,63696.0,63695.0,0.001826]
[1724676252039,1.087586,63696.0,63695.0,0.001826]
[1724676252272,1.401577,63696.0,63695.0,0.001826]
[1724676254235,1.87174601,63696.0,63695.0,0.001826]
[1724676254439,1.87174601,63696.0,63695.0,0.000826]
[1724676255113,0.108,63696.0,63695.0,0.001826]
[1724676256015,0.108,63696.0,63695.0,0.000826]
[1724676256218,0.108,63696.0,63695.0,0.001826]
[1724676256419,0.108,63696.0,63695.0,0.000826]
[1724676256619,0.008,63696.0,63695.0,0.000826]
[1724676257587,0.008,63696.0,63695.0,0.001826]
[1724676257817,0.356795,63696.0,63695.0,0.001826]
[1724676258092,0.670786,63696.0,63695.0,0.001826]
[1724676258318,0.770786,63696.0,63695.0,0.000826]
[1724676258763,0.770786,63696.0,63695.0,0.001826]
[1724676259424,0.108,63696.0,63695.0,0.001826]
[1724676259853,0.008,63696.0,63695.0,0.001826]
[1724676260055,0.108,63696.0,63695.0,0.001826]
[1724676260529,0.008,63696.0,63695.0,0.504126]
[1724676260743,0.008,63696.0,63695.0,0.683124]
[1724676261361,0.1962,63707.0,63695.0,0.683124]
[1724676261538,0.005,63696.0,63695.0,0.526126]
[1724676261755,0.008,63696.0,63695.0,0.526126]
[1724676261954,0.008,63696.0,63695.0,0.001826]
[1724676262183,0.003,63696.0,63695.0,0.001826]
[1724676262382,0.1651303,63696.0,63695.0,0.014826]
[1724676262790,0.475986,63696.0,63695.0,0.014826]
[1724676263008,0.474986,63696.0,63695.0,0.011826]
[1724676263241,0.470986,63696.0,63695.0,0.001826]
[1724676263494,0.470986,63696.0,63695.0,0.004826]
[1724676264016,0.355593,63697.0,63695.0,0.004826]
[1724676264253,0.470986,63696.0,63695.0,0.004826]
[1724676264761,0.784977,63696.0,63695.0,0.004826]
[1724676264997,1.405168,63696.0,63695.0,0.001826]
[1724676265223,1.091177,63696.0,63695.0,0.000826]
[1724676265486,0.777186,63696.0,63695.0,0.001826]
[1724676265733,0.777186,63696.0,63695.0,0.000826]
[1724676265934,0.779186,63696.0,63695.0,0.000826]
[1724676266074,0.783186,63696.0,63695.0,0.001826]
[1724676266275,0.474986,63696.0,63695.0,0.001826]
[1724676266480,0.470986,63696.0,63695.0,0.001826]
[1724676267292,0.156995,63696.0,63695.0,0.001826]
[1724676267702,0.470986,63696.0,63695.0,0.001826]
[1724676267946,0.472986,63696.0,63695.0,0.001826]
[1724676268181,0.472986,63696.0,63695.0,0.000826]
[1724676268386,0.470986,63696.0,63695.0,0.004826]
[1724676268497,0.156995,63696.0,63695.0,0.003826]
[1724676268908,0.156995,63696.0,63695.0,0.004826]
[1724676269117,0.470986,63696.0,63695.0,0.004826]
[1724676271012,0.02,63697.0,63696.0,0.001]
[1724676272337,0.176993,63697.0,63696.0,0.001]
[1724676272567,0.490981,63697.0,63696.0,0.001]
[1724676272776,0.333988,63697.0,63696.0,0.001]
[1724676272987,0.470986,63696.0,63695.0,0.000826]
[1724676273222,1.084577,63696.0,63695.0,0.000826]
[1724676273432,1.184577,63696.0,63695.0,0.001826]
[1724676274061,1.84684601,63696.0,63695.0,0.000826]
[1724676274265,2.31696869,63696.0,63695.0,0.000826]
[1724676274674,2.30137601,63696.0,63695.0,0.000826]
[1724676274887,1.49568501,63696.0,63695.0,0.000826]
[1724676275093,1.55325501,63696.0,63695.0,0.003826]
[1724676275292,1.59970805,63696.0,63695.0,0.003826]
[1724676275495,1.87624601,63696.0,63695.0,0.000826]
[1724676275937,1.89024601,63696.0,63695.0,0.001826]
[1724676276146,1.88124601,63696.0,63695.0,0.001826]
[1724676276557,1.9349484,63696.0,63695.0,0.001826]
[1724676277592,1.9489484,63696.0,63695.0,0.001826]
[1724676278582,1.94899381,63696.0,63695.0,0.001826]
[1724676278787,2.21648636,63696.0,63695.0,0.001826]
[1724676279001,1.90249536,63696.0,63695.0,0.001826]
[1724676279639,1.97217492,63696.0,63695.0,0.001826]
[1724676280047,2.28616592,63696.0,63695.0,0.001826]
[1724676280457,2.28625811,63696.0,63695.0,0.001826]
[1724676280691,2.21648636,63696.0,63695.0,0.001826]
[1724676281520,2.30939245,63696.0,63695.0,0.001826]
[1724676282534,2.33242051,63696.0,63695.0,0.001826]
[1724676282800,2.21648636,63696.0,63695.0,0.001826]
[1724676283356,2.53047736,63696.0,63695.0,0.001826]
[1724676283574,2.66959834,63696.0,63695.0,0.001826]
[1724676283971,2.68572145,63696.0,63695.0,0.001826]
[1724676284395,2.53047736,63696.0,63695.0,0.001826]
[1724676285700,2.68418204,63696.0,63695.0,0.001826]
[1724676285906,2.84050513,63696.0,63695.0,0.001826]
[1724676286103,2.68660904,63696.0,63695.0,0.001826]
[1724676286571,2.68760904,63696.0,63695.0,0.001826]
[1724676287137,3.69643936,63696.0,63695.0,1e-06]
[1724676287345,2.94507736,63696.0,63695.0,1e-06]
[1724676288477,2.89437736,63696.0,63695.0,1e-06]
[1724676288987,3.1328138,63696.0,63695.0,1e-06]
[1724676289414,3.4468048,63696.0,63695.0,1e-06]
[1724676290233,3.4328048,63696.0,63695.0,1e-06]
[1724676290437,3.41971231,63696.0,63695.0,1e-06]
[1724676290643,3.19527587,63696.0,63695.0,1e-06]
[1724676290909,3.20927587,63696.0,63695.0,1e-06]
[1724676291114,2.69068487,63696.0,63695.0,1e-06]
[1724676291320,2.84681655,63696.0,63695.0,1e-06]
[1724676291904,3.16061865,63696.0,63695.0,1e-06]
[1724676292106,2.69049597,63696.0,63695.0,1e-06]
[1724676292532,3.01851797,63696.0,63695.0,1e-06]
[1724676293003,2.85479597,63696.0,63695.0,1e-06]
[1724676296668,2.21720497,63696.0,63695.0,1e-06]
[1724676297080,2.03667618,63696.0,63695.0,1e-06]
[1724676297290,1.89720497,63696.0,63695.0,1e-06]
[1724676298674,1.70510497,63696.0,63695.0,1e-06]
[1724676299070,1.69785562,63696.0,63695.0,1e-06]
[1724676299484,1.79084739,63696.0,63695.0,1e-06]
[1724676299711,1.79084793,63696.0,63695.0,1e-06]
[1724676300330,1.47685693,63696.0,63695.0,1e-06]
[1724676300554,0.54620816,63696.0,63695.0,0.500001]
[1724676300780,0.49970461,63696.0,63695.0,0.500001]
[1724676301393,0.47170461,63696.0,63695.0,0.5]
[1724676301795,0.49270461,63696.0,63695.0,0.5]
[1724676302407,0.90669561,63696.0,63695.0,0.5]
[1724676302583,0.15701,63690.0,63689.0,0.3279]
[1724676302782,0.15701,63690.0,63687.0,0.001]
[1724676302783,0.157015,63688.0,63687.0,0.001]
[1724676302985,0.7851,63686.0,63685.0,0.3279]
[1724676303183,0.94127801,63686.0,63685.0,0.3289]
[1724676303415,1.25531801,63686.0,63685.0,0.3289]
[1724676303807,1.25531801,63686.0,63685.0,0.3279]
[1724676304326,0.7901,63686.0,63685.0,0.3279]
[1724676305188,0.47606,63686.0,63685.0,0.3279]
[1724676305512,0.47606,63686.0,63685.0,0.5181]
[1724676305513,0.005,63686.0,63685.0,0.5181]
[1724676305748,0.008,63686.0,63685.0,0.5181]
[1724676305980,0.008,63686.0,63685.0,0.5411]
[1724676306418,0.005,63686.0,63685.0,0.5411]
[1724676306619,0.1,63695.0,63688.0,0.3044]
[1724676306824,0.1,63695.0,63690.0,0.3044]
[1724676307049,0.1,63695.0,63693.0,0.3044]
[1724676307050,0.256998,63695.0,63693.0,0.3044]
[1724676307867,0.157,63694.0,63693.0,0.3044]
[1724676308069,0.257,63694.0,63693.0,0.3044]
[1724676308844,0.885002,63694.0,63693.0,0.3044]
[1724676309388,0.890002,63694.0,63693.0,0.3044]
[1724676309590,0.89693953,63694.0,63693.0,0.3044]
[1724676310895,1.21094053,63694.0,63693.0,0.3044]
[1724676311294,0.89693953,63694.0,63693.0,0.3044]
[1724676312432,0.890002,63694.0,63693.0,0.3044]
[1724676313675,0.105,63694.0,63693.0,0.3044]
[1724676313894,0.005,63694.0,63693.0,0.3044]
[1724676314099,0.012,63694.0,63693.0,0.3044]
[1724676314496,0.112,63694.0,63693.0,0.3044]
[1724676314711,0.269,63694.0,63693.0,0.3044]
[1724676315494,0.269,63694.0,63693.0,0.305225]
[1724676315900,0.2721353,63694.0,63693.0,0.305225]
[1724676316109,0.583001,63694.0,63693.0,0.305225]
[1724676317797,1.211003,63694.0,63693.0,0.305225]
[1724676318205,0.897002,63694.0,63693.0,0.305225]
[1724676318834,0.112,63694.0,63693.0,0.305225]